[Event "Titled Tuesday Blitz July 11 Early 2023"]
[White "campochess"]
[Black "Berezin, Viktor"]
[BlackFideId "14107872"]
[WhiteElo "2111"]
[BlackElo "2536"]
[Result "0-1"]
[Round "1"]
[TimeControl "180+2"]
[Date "2023.07.11"]
[WhiteClock "0:00:39"]
[BlackClock "0:00:21"]
[Board "211"]

1. e4 {[%clk 0:02:57]}  c6 {[%clk 0:02:58]} 2. d4 {[%clk 0:02:57]}  d5 {[%clk 0:02:59]} 3. exd5 {[%clk 0:02:57]}  cxd5 {[%clk 0:02:59]} 4. c4 {[%clk 0:02:57]}  Nf6 {[%clk 0:03:00]} 5. Nc3 {[%clk 0:02:57]}  Nc6 {[%clk 0:03:00]} 6. Bg5 {[%clk 0:02:57]}  Be6 {[%clk 0:02:56]} 7. c5 {[%clk 0:02:54]}  h6 {[%clk 0:02:55]} 8. Bh4 {[%clk 0:02:50]}  g5 {[%clk 0:02:46]} 9. Bg3 {[%clk 0:02:49]}  Bg7 {[%clk 0:02:36]} 10. h4 {[%clk 0:02:47]}  g4 {[%clk 0:02:31]} 11. Bb5 {[%clk 0:02:44]}  Nh5 {[%clk 0:02:26]} 12. Nge2 {[%clk 0:02:41]}  O-O {[%clk 0:02:24]} 13. Ba4 {[%clk 0:02:35]}  Nxg3 {[%clk 0:02:20]} 14. fxg3 {[%clk 0:02:34]}  Na5 {[%clk 0:02:17]} 15. O-O {[%clk 0:02:32]}  Nc4 {[%clk 0:02:13]} 16. Bc2 {[%clk 0:02:31]}  Ne3 {[%clk 0:02:09]} 17. Qd3 {[%clk 0:02:29]}  Nxc2 {[%clk 0:02:10]} 18. Qxc2 {[%clk 0:02:29]}  b6 {[%clk 0:02:08]} 19. b4 {[%clk 0:02:27]}  a5 {[%clk 0:02:01]} 20. a3 {[%clk 0:02:25]}  f5 {[%clk 0:01:48]} 21. Nf4 {[%clk 0:02:21]}  Bf7 {[%clk 0:01:48]} 22. Rad1 {[%clk 0:02:08]}  axb4 {[%clk 0:01:45]} 23. axb4 {[%clk 0:02:07]}  bxc5 {[%clk 0:01:39]} 24. Qxf5 {[%clk 0:02:01]}  cxd4 {[%clk 0:00:50]} 25. Ncxd5 {[%clk 0:01:33]}  Ra6 {[%clk 0:00:49]} 26. Qe4 {[%clk 0:01:29]}  e6 {[%clk 0:00:40]} 27. Qd3 {[%clk 0:01:24]}  Rd6 {[%clk 0:00:38]} 28. Ne3 {[%clk 0:01:18]}  e5 {[%clk 0:00:31]} 29. Ne2 {[%clk 0:01:09]}  Bg6 {[%clk 0:00:26]} 30. Qc4+ {[%clk 0:01:03]}  Kh7 {[%clk 0:00:26]} 31. Nxg4 {[%clk 0:01:01]}  d3 {[%clk 0:00:21]} 32. Nc3 {[%clk 0:00:55]}  Rd4 {[%clk 0:00:21]} 33. Qc5 {[%clk 0:00:51]}  Rxg4 {[%clk 0:00:20]} 34. Rxf8 {[%clk 0:00:48]}  Qxf8 {[%clk 0:00:20]} 35. Qxf8 {[%clk 0:00:47]}  Bxf8 {[%clk 0:00:21]} 36. Rd2 {[%clk 0:00:39]}  Bxb4 {[%clk 0:00:21]} 0-1


[Site "https://www.chess.com"]

[Event "Titled Tuesday Blitz July 11 Early 2023"]
[White "Fiorito, Francisco"]
[Black "Hrescak, Ivana"]
[WhiteFideId "180165"]
[BlackFideId "14613441"]
[WhiteElo "2534"]
[BlackElo "2111"]
[Result "1/2-1/2"]
[Round "1"]
[TimeControl "180+2"]
[Date "2023.07.11"]
[WhiteClock "0:00:17"]
[BlackClock "0:00:12"]
[Board "212"]

1. Nf3 {[%clk 0:02:58]}  d5 {[%clk 0:03:00]} 2. g3 {[%clk 0:02:59]}  Nf6 {[%clk 0:03:00]} 3. Bg2 {[%clk 0:02:59]}  Bg4 {[%clk 0:03:00]} 4. Ne5 {[%clk 0:02:58]}  Be6 {[%clk 0:02:54]} 5. b3 {[%clk 0:02:58]}  c6 {[%clk 0:02:55]} 6. Bb2 {[%clk 0:02:57]}  Nbd7 {[%clk 0:02:54]} 7. Nxd7 {[%clk 0:02:58]}  Bxd7 {[%clk 0:02:54]} 8. d3 {[%clk 0:02:57]}  e6 {[%clk 0:02:53]} 9. Nd2 {[%clk 0:02:57]}  Be7 {[%clk 0:02:53]} 10. e4 {[%clk 0:02:57]}  O-O {[%clk 0:02:50]} 11. O-O {[%clk 0:02:58]}  h6 {[%clk 0:02:46]} 12. Qe2 {[%clk 0:02:56]}  Re8 {[%clk 0:02:43]} 13. f4 {[%clk 0:02:56]}  dxe4 {[%clk 0:02:37]} 14. dxe4 {[%clk 0:02:55]}  Bc5+ {[%clk 0:02:36]} 15. Kh1 {[%clk 0:02:56]}  a5 {[%clk 0:02:25]} 16. a4 {[%clk 0:02:54]}  b5 {[%clk 0:02:22]} 17. Rad1 {[%clk 0:02:39]}  Rb8 {[%clk 0:02:17]} 18. Ba1 {[%clk 0:02:35]}  bxa4 {[%clk 0:02:16]} 19. bxa4 {[%clk 0:02:35]}  Rb4 {[%clk 0:02:15]} 20. Nb3 {[%clk 0:02:33]}  Bb6 {[%clk 0:02:04]} 21. Qd3 {[%clk 0:02:23]}  Bc8 {[%clk 0:01:57]} 22. Qe2 {[%clk 0:01:52]}  Qe7 {[%clk 0:01:50]} 23. Nd4 {[%clk 0:01:36]}  Bxd4 {[%clk 0:01:36]} 24. Rxd4 {[%clk 0:01:37]}  c5 {[%clk 0:01:28]} 25. Rxb4 {[%clk 0:01:33]}  cxb4 {[%clk 0:01:27]} 26. Rd1 {[%clk 0:01:32]}  Rd8 {[%clk 0:01:19]} 27. h3 {[%clk 0:01:30]}  Bd7 {[%clk 0:01:04]} 28. Qd3 {[%clk 0:01:15]}  Kf8 {[%clk 0:00:35]} 29. Be5 {[%clk 0:01:13]}  Kg8 {[%clk 0:00:28]} 30. Bc7 {[%clk 0:01:12]}  Rc8 {[%clk 0:00:22]} 31. Bxa5 {[%clk 0:01:11]}  Bxa4 {[%clk 0:00:22]} 32. Rd2 {[%clk 0:01:06]}  Rc3 {[%clk 0:00:19]} 33. Qd8+ {[%clk 0:00:53]}  Qxd8 {[%clk 0:00:19]} 34. Rxd8+ {[%clk 0:00:54]}  Kh7 {[%clk 0:00:19]} 35. Bxb4 {[%clk 0:00:55]}  Rxc2 {[%clk 0:00:19]} 36. Bd2 {[%clk 0:00:26]}  Bc6 {[%clk 0:00:17]} 37. Rd4 {[%clk 0:00:18]}  Nxe4 {[%clk 0:00:16]} 38. Bxe4+ {[%clk 0:00:15]}  Bxe4+ {[%clk 0:00:17]} 39. Rxe4 {[%clk 0:00:16]}  Rxd2 {[%clk 0:00:17]} 40. Kg1 {[%clk 0:00:17]}  h5 {[%clk 0:00:17]} 41. h4 {[%clk 0:00:17]}  g6 {[%clk 0:00:17]} 42. Re5 {[%clk 0:00:17]}  Kg7 {[%clk 0:00:18]} 43. Ra5 {[%clk 0:00:18]}  Kf6 {[%clk 0:00:18]} 44. Rb5 {[%clk 0:00:18]}  Rd5 {[%clk 0:00:18]} 45. Rb3 {[%clk 0:00:16]}  Rd2 {[%clk 0:00:18]} 46. Rb5 {[%clk 0:00:16]}  Rd5 {[%clk 0:00:17]} 47. Rb3 {[%clk 0:00:15]}  Kf5 {[%clk 0:00:16]} 48. Rb7 {[%clk 0:00:15]}  f6 {[%clk 0:00:15]} 49. Rg7 {[%clk 0:00:15]}  e5 {[%clk 0:00:15]} 50. fxe5 {[%clk 0:00:15]}  fxe5 {[%clk 0:00:14]} 51. Kf1 {[%clk 0:00:16]}  Rd2 {[%clk 0:00:14]} 52. Kg1 {[%clk 0:00:15]}  e4 {[%clk 0:00:13]} 53. Kf1 {[%clk 0:00:16]}  e3 {[%clk 0:00:13]} 54. Re7 {[%clk 0:00:15]}  e2+ {[%clk 0:00:11]} 55. Rxe2 {[%clk 0:00:15]}  Rxe2 {[%clk 0:00:11]} 56. Kxe2 {[%clk 0:00:16]}  Kg4 {[%clk 0:00:11]} 57. Kf2 {[%clk 0:00:16]}  g5 {[%clk 0:00:10]} 58. hxg5 {[%clk 0:00:16]}  Kxg5 {[%clk 0:00:10]} 59. Kf3 {[%clk 0:00:17]}  h4 {[%clk 0:00:10]} 60. g4 {[%clk 0:00:16]}  h3 {[%clk 0:00:10]} 61. Kg3 {[%clk 0:00:17]}  h2 {[%clk 0:00:11]} 62. Kxh2 {[%clk 0:00:17]}  Kxg4 {[%clk 0:00:12]} 1/2-1/2


[Site "https://www.chess.com"]

[Event "Titled Tuesday Blitz July 11 Early 2023"]
[White "Marin Masis, Jose Esteban"]
[Black "Rangel, Daniel"]
[WhiteFideId "6508146"]
[BlackFideId "2124475"]
[WhiteElo "2107"]
[BlackElo "2533"]
[Result "0-1"]
[Round "1"]
[TimeControl "180+2"]
[Date "2023.07.11"]
[WhiteClock "0:00:33"]
[BlackClock "0:01:14"]
[Board "213"]

1. e4 {[%clk 0:03:00]}  c5 {[%clk 0:02:58]} 2. Nf3 {[%clk 0:02:59]}  g6 {[%clk 0:02:59]} 3. d4 {[%clk 0:02:58]}  cxd4 {[%clk 0:03:00]} 4. Nxd4 {[%clk 0:02:59]}  Bg7 {[%clk 0:03:00]} 5. c4 {[%clk 0:02:59]}  Nc6 {[%clk 0:03:00]} 6. Be3 {[%clk 0:02:58]}  Nf6 {[%clk 0:03:00]} 7. Nc3 {[%clk 0:02:58]}  O-O {[%clk 0:03:01]} 8. Be2 {[%clk 0:02:56]}  Nxd4 {[%clk 0:03:00]} 9. Bxd4 {[%clk 0:02:56]}  d6 {[%clk 0:03:01]} 10. O-O {[%clk 0:02:55]}  Bd7 {[%clk 0:03:02]} 11. Rc1 {[%clk 0:02:55]}  Bc6 {[%clk 0:03:01]} 12. f3 {[%clk 0:02:54]}  Nd7 {[%clk 0:03:01]} 13. Bxg7 {[%clk 0:02:53]}  Kxg7 {[%clk 0:03:02]} 14. Nd5 {[%clk 0:02:53]}  Bxd5 {[%clk 0:03:00]} 15. cxd5 {[%clk 0:02:52]}  Qb6+ {[%clk 0:02:59]} 16. Kh1 {[%clk 0:02:50]}  Qxb2 {[%clk 0:02:59]} 17. Rc2 {[%clk 0:02:48]}  Qb6 {[%clk 0:02:57]} 18. Qa1+ {[%clk 0:02:46]}  Kg8 {[%clk 0:02:55]} 19. Rb1 {[%clk 0:02:47]}  Qd8 {[%clk 0:02:54]} 20. Rxb7 {[%clk 0:02:45]}  Nc5 {[%clk 0:02:53]} 21. Rb1 {[%clk 0:02:38]}  Rb8 {[%clk 0:02:53]} 22. Rcb2 {[%clk 0:02:35]}  Qc7 {[%clk 0:02:53]} 23. Rxb8 {[%clk 0:02:29]}  Rxb8 {[%clk 0:02:54]} 24. Rb5 {[%clk 0:02:25]}  Rxb5 {[%clk 0:02:47]} 25. Bxb5 {[%clk 0:02:26]}  Qa5 {[%clk 0:02:47]} 26. Bc6 {[%clk 0:02:19]}  Nd3 {[%clk 0:02:40]} 27. h3 {[%clk 0:02:14]}  Qd2 {[%clk 0:02:37]} 28. Qf1 {[%clk 0:01:48]}  h5 {[%clk 0:02:20]} 29. a4 {[%clk 0:01:46]}  h4 {[%clk 0:02:18]} 30. Bb5 {[%clk 0:01:35]}  Nf4 {[%clk 0:02:17]} 31. Bd7 {[%clk 0:01:31]}  Nh5 {[%clk 0:02:13]} 32. Kg1 {[%clk 0:01:11]}  Ng3 {[%clk 0:02:09]} 33. Qb1 {[%clk 0:01:08]}  a5 {[%clk 0:01:45]} 34. Bb5 {[%clk 0:01:07]}  Qe3+ {[%clk 0:01:39]} 35. Kh2 {[%clk 0:00:58]}  Qf2 {[%clk 0:01:31]} 36. Qg1 {[%clk 0:00:51]}  Qb2 {[%clk 0:01:27]} 37. Qb6 {[%clk 0:00:49]}  Qe5 {[%clk 0:01:21]} 38. Qd8+ {[%clk 0:00:42]}  Kg7 {[%clk 0:01:18]} 39. Qxa5 {[%clk 0:00:37]}  Ne2+ {[%clk 0:01:15]} 40. Kh1 {[%clk 0:00:34]}  Qa1+ {[%clk 0:01:15]} 41. Kh2 {[%clk 0:00:33]}  Qg1# {[%clk 0:01:14]} 0-1


[Site "https://www.chess.com"]

[Event "Titled Tuesday Blitz July 11 Early 2023"]
[White "cycygogne"]
[Black "Dushyant Sharma"]
[BlackFideId "25065130"]
[WhiteElo "2100"]
[BlackElo "2530"]
[Result "0-1"]
[Round "1"]
[TimeControl "180+2"]
[Date "2023.07.11"]
[WhiteClock "0:01:08"]
[BlackClock "0:02:32"]
[Board "215"]

1. e4 {[%clk 0:02:59]}  d5 {[%clk 0:02:59]} 2. exd5 {[%clk 0:02:59]}  Nf6 {[%clk 0:02:58]} 3. Nf3 {[%clk 0:02:57]}  c6 {[%clk 0:02:57]} 4. dxc6 {[%clk 0:02:48]}  Nxc6 {[%clk 0:02:58]} 5. Bc4 {[%clk 0:02:38]}  Bg4 {[%clk 0:02:52]} 6. h3 {[%clk 0:02:35]}  Bh5 {[%clk 0:02:52]} 7. d3 {[%clk 0:02:31]}  e6 {[%clk 0:02:49]} 8. Be3 {[%clk 0:02:30]}  Be7 {[%clk 0:02:48]} 9. Nc3 {[%clk 0:02:30]}  O-O {[%clk 0:02:49]} 10. g4 {[%clk 0:02:24]}  Bg6 {[%clk 0:02:49]} 11. Qd2 {[%clk 0:02:23]}  Nd5 {[%clk 0:02:49]} 12. Nxd5 {[%clk 0:02:17]}  exd5 {[%clk 0:02:49]} 13. Bb3 {[%clk 0:02:18]}  d4 {[%clk 0:02:46]} 14. Bf4 {[%clk 0:02:17]}  Bb4 {[%clk 0:02:47]} 15. c3 {[%clk 0:02:16]}  dxc3 {[%clk 0:02:48]} 16. bxc3 {[%clk 0:02:14]}  Ba5 {[%clk 0:02:45]} 17. O-O {[%clk 0:02:03]}  Qxd3 {[%clk 0:02:43]} 18. Qxd3 {[%clk 0:01:44]}  Bxd3 {[%clk 0:02:44]} 19. Rfe1 {[%clk 0:01:39]}  Bxc3 {[%clk 0:02:40]} 20. Rad1 {[%clk 0:01:30]}  Bxe1 {[%clk 0:02:38]} 21. Rxe1 {[%clk 0:01:31]}  Rfe8 {[%clk 0:02:37]} 22. Rxe8+ {[%clk 0:01:16]}  Rxe8 {[%clk 0:02:38]} 23. Ng5 {[%clk 0:01:16]}  Bg6 {[%clk 0:02:32]} 24. Kg2 {[%clk 0:01:09]}  h6 {[%clk 0:02:32]} 25. Nf3 {[%clk 0:01:09]}  Be4 {[%clk 0:02:31]} 26. Kg3 {[%clk 0:01:09]}  Bxf3 {[%clk 0:02:31]} 27. Kxf3 {[%clk 0:01:10]}  Nd4+ {[%clk 0:02:31]} 28. Kg2 {[%clk 0:01:10]}  Nxb3 {[%clk 0:02:32]} 29. axb3 {[%clk 0:01:10]}  Re2 {[%clk 0:02:32]} 30. Kf3 {[%clk 0:01:08]}  Rb2 {[%clk 0:02:32]} 0-1


[Site "https://www.chess.com"]

[Event "Titled Tuesday Blitz July 11 Early 2023"]
[White "Winkels, Marcel"]
[Black "Yeritsyan, Hayk"]
[WhiteFideId "1003887"]
[BlackFideId "13307320"]
[WhiteElo "2086"]
[BlackElo "2528"]
[Result "0-1"]
[Round "1"]
[TimeControl "180+2"]
[Date "2023.07.11"]
[WhiteClock "0:00:11"]
[BlackClock "0:00:38"]
[Board "217"]

1. e3 {[%clk 0:03:00]}  d5 {[%clk 0:02:56]} 2. f4 {[%clk 0:03:00]}  Nf6 {[%clk 0:02:56]} 3. Nf3 {[%clk 0:03:00]}  Bf5 {[%clk 0:02:56]} 4. Be2 {[%clk 0:02:58]}  e6 {[%clk 0:02:56]} 5. O-O {[%clk 0:02:59]}  h6 {[%clk 0:02:56]} 6. d3 {[%clk 0:02:58]}  Be7 {[%clk 0:02:56]} 7. Nc3 {[%clk 0:02:56]}  c6 {[%clk 0:02:56]} 8. Ne5 {[%clk 0:02:55]}  O-O {[%clk 0:02:57]} 9. Bd2 {[%clk 0:02:53]}  Nbd7 {[%clk 0:02:57]} 10. Qe1 {[%clk 0:02:46]}  Nxe5 {[%clk 0:02:54]} 11. fxe5 {[%clk 0:02:45]}  Nd7 {[%clk 0:02:55]} 12. Qg3 {[%clk 0:02:42]}  Bh4 {[%clk 0:02:48]} 13. Qf4 {[%clk 0:02:35]}  Bg5 {[%clk 0:02:39]} 14. Qg3 {[%clk 0:02:34]}  Bh4 {[%clk 0:02:39]} 15. Qf4 {[%clk 0:02:33]}  Qg5 {[%clk 0:02:39]} 16. e4 {[%clk 0:02:21]}  Bh7 {[%clk 0:02:26]} 17. Qxg5 {[%clk 0:02:17]}  Bxg5 {[%clk 0:02:26]} 18. Bxg5 {[%clk 0:02:16]}  hxg5 {[%clk 0:02:27]} 19. d4 {[%clk 0:02:09]}  Bxe4 {[%clk 0:02:01]} 20. Nxe4 {[%clk 0:02:07]}  dxe4 {[%clk 0:02:02]} 21. Bc4 {[%clk 0:02:04]}  c5 {[%clk 0:01:45]} 22. c3 {[%clk 0:01:49]}  cxd4 {[%clk 0:01:41]} 23. cxd4 {[%clk 0:01:49]}  Rac8 {[%clk 0:01:41]} 24. Bb3 {[%clk 0:01:48]}  Nb6 {[%clk 0:01:20]} 25. Rae1 {[%clk 0:01:46]}  Nc4 {[%clk 0:01:14]} 26. Bxc4 {[%clk 0:01:15]}  Rxc4 {[%clk 0:01:15]} 27. Rd1 {[%clk 0:01:14]}  Rd8 {[%clk 0:01:12]} 28. Kf2 {[%clk 0:00:59]}  Rdxd4 {[%clk 0:01:04]} 29. Rxd4 {[%clk 0:00:58]}  Rxd4 {[%clk 0:01:04]} 30. Ke3 {[%clk 0:00:58]}  Rd3+ {[%clk 0:00:57]} 31. Kxe4 {[%clk 0:00:58]}  Rd2 {[%clk 0:00:57]} 32. Rc1 {[%clk 0:00:45]}  Rxb2 {[%clk 0:00:52]} 33. Rc8+ {[%clk 0:00:45]}  Kh7 {[%clk 0:00:52]} 34. Rc7 {[%clk 0:00:42]}  Kg6 {[%clk 0:00:52]} 35. a4 {[%clk 0:00:41]}  Rb4+ {[%clk 0:00:45]} 36. Ke3 {[%clk 0:00:39]}  Rxa4 {[%clk 0:00:40]} 37. Rxb7 {[%clk 0:00:38]}  Ra1 {[%clk 0:00:39]} 38. h3 {[%clk 0:00:36]}  a5 {[%clk 0:00:38]} 39. g4 {[%clk 0:00:35]}  a4 {[%clk 0:00:38]} 40. Ra7 {[%clk 0:00:31]}  a3 {[%clk 0:00:38]} 41. Kf2 {[%clk 0:00:28]}  a2 {[%clk 0:00:38]} 42. Kg2 {[%clk 0:00:29]}  f6 {[%clk 0:00:38]} 43. exf6 {[%clk 0:00:27]}  gxf6 {[%clk 0:00:39]} 44. Ra6 {[%clk 0:00:26]}  e5 {[%clk 0:00:39]} 45. Ra7 {[%clk 0:00:25]}  e4 {[%clk 0:00:39]} 46. Ra6 {[%clk 0:00:25]}  e3 {[%clk 0:00:39]} 47. Ra7 {[%clk 0:00:11]}  e2 {[%clk 0:00:38]} 0-1


[Site "https://www.chess.com"]

[Event "Titled Tuesday Blitz July 11 Early 2023"]
[White "Kuzmin, Roman"]
[Black "Jaivardhan Raj"]
[WhiteFideId "44134932"]
[BlackFideId "25744437"]
[WhiteElo "2527"]
[BlackElo "2074"]
[Result "1-0"]
[Round "1"]
[TimeControl "180+2"]
[Date "2023.07.11"]
[WhiteClock "0:01:57"]
[BlackClock "0:01:04"]
[Board "218"]

1. e4 {[%clk 0:03:00]}  c5 {[%clk 0:01:44]} 2. Nf3 {[%clk 0:03:00]}  e5 {[%clk 0:01:45]} 3. Nc3 {[%clk 0:02:43]}  d6 {[%clk 0:01:44]} 4. Bc4 {[%clk 0:02:42]}  Nc6 {[%clk 0:01:44]} 5. d3 {[%clk 0:02:42]}  Nf6 {[%clk 0:01:44]} 6. Nd2 {[%clk 0:02:41]}  Be7 {[%clk 0:01:43]} 7. Nf1 {[%clk 0:02:41]}  O-O {[%clk 0:01:43]} 8. Ne3 {[%clk 0:02:32]}  Be6 {[%clk 0:01:44]} 9. h4 {[%clk 0:02:22]}  Na5 {[%clk 0:01:39]} 10. g3 {[%clk 0:02:19]}  Nxc4 {[%clk 0:01:38]} 11. dxc4 {[%clk 0:02:20]}  a6 {[%clk 0:01:35]} 12. a4 {[%clk 0:02:17]}  Qc8 {[%clk 0:01:27]} 13. O-O {[%clk 0:02:15]}  Ng4 {[%clk 0:01:27]} 14. Ned5 {[%clk 0:02:13]}  Bd8 {[%clk 0:01:23]} 15. Be3 {[%clk 0:02:06]}  f5 {[%clk 0:01:18]} 16. exf5 {[%clk 0:01:56]}  Bxf5 {[%clk 0:01:16]} 17. Bg5 {[%clk 0:01:57]}  Bxg5 {[%clk 0:01:14]} 18. hxg5 {[%clk 0:01:58]}  e4 {[%clk 0:01:04]} 19. Ne7+ {[%clk 0:01:57]} 1-0


[Site "https://www.chess.com"]

[Event "Titled Tuesday Blitz July 11 Early 2023"]
[White "Sidletskyi, Ivan"]
[Black "Ismayilova, Khanim"]
[WhiteFideId "14156024"]
[BlackFideId "13429019"]
[WhiteElo "2522"]
[BlackElo "2015"]
[Result "1-0"]
[Round "1"]
[TimeControl "180+2"]
[Date "2023.07.11"]
[WhiteClock "0:01:08"]
[BlackClock "0:00:30"]
[Board "224"]

1. d4 {[%clk 0:03:00]}  d5 {[%clk 0:02:59]} 2. Nf3 {[%clk 0:02:58]}  Nf6 {[%clk 0:02:57]} 3. e3 {[%clk 0:02:56]}  Bg4 {[%clk 0:02:56]} 4. b3 {[%clk 0:02:54]}  e6 {[%clk 0:02:54]} 5. Bb2 {[%clk 0:02:54]}  Bb4+ {[%clk 0:02:50]} 6. c3 {[%clk 0:02:50]}  Bd6 {[%clk 0:02:50]} 7. Nbd2 {[%clk 0:02:50]}  O-O {[%clk 0:02:49]} 8. h3 {[%clk 0:02:49]}  Bh5 {[%clk 0:02:47]} 9. Be2 {[%clk 0:02:47]}  c5 {[%clk 0:02:41]} 10. O-O {[%clk 0:02:46]}  Nc6 {[%clk 0:02:39]} 11. Rc1 {[%clk 0:02:38]}  Rc8 {[%clk 0:02:19]} 12. dxc5 {[%clk 0:02:36]}  Bxc5 {[%clk 0:02:18]} 13. c4 {[%clk 0:02:37]}  Qe7 {[%clk 0:02:06]} 14. cxd5 {[%clk 0:02:33]}  Nxd5 {[%clk 0:02:00]} 15. Ne4 {[%clk 0:02:33]}  Ba3 {[%clk 0:01:54]} 16. Bxa3 {[%clk 0:02:17]}  Qxa3 {[%clk 0:01:53]} 17. Qd2 {[%clk 0:01:55]}  Ncb4 {[%clk 0:01:49]} 18. Nd6 {[%clk 0:01:37]}  Rxc1 {[%clk 0:01:41]} 19. Rxc1 {[%clk 0:01:25]}  Nxa2 {[%clk 0:01:40]} 20. Ra1 {[%clk 0:01:12]}  Qxd6 {[%clk 0:01:38]} 21. Rxa2 {[%clk 0:01:11]}  a6 {[%clk 0:01:32]} 22. e4 {[%clk 0:01:10]}  Qb4 {[%clk 0:00:42]} 23. exd5 {[%clk 0:01:09]}  exd5 {[%clk 0:00:30]} 24. Qxb4 {[%clk 0:01:08]} 1-0


[Site "https://www.chess.com"]

[Event "Titled Tuesday Blitz July 11 Early 2023"]
[White "Ottosen, David"]
[Black "Brunner, Nicolas"]
[WhiteFideId "2603080"]
[BlackFideId "620246"]
[WhiteElo "2014"]
[BlackElo "2521"]
[Result "0-1"]
[Round "1"]
[TimeControl "180+2"]
[Date "2023.07.11"]
[WhiteClock "0:02:17"]
[BlackClock "0:02:19"]
[Board "225"]

1. e4 {[%clk 0:02:59]}  e5 {[%clk 0:02:59]} 2. Nf3 {[%clk 0:02:59]}  Nf6 {[%clk 0:03:00]} 3. Bc4 {[%clk 0:02:59]}  Nxe4 {[%clk 0:02:57]} 4. Nc3 {[%clk 0:03:00]}  Nf6 {[%clk 0:02:56]} 5. d4 {[%clk 0:02:57]}  exd4 {[%clk 0:02:53]} 6. Nxd4 {[%clk 0:02:57]}  Bb4 {[%clk 0:02:51]} 7. Bg5 {[%clk 0:02:56]}  O-O {[%clk 0:02:50]} 8. O-O {[%clk 0:02:55]}  h6 {[%clk 0:02:50]} 9. Bh4 {[%clk 0:02:54]}  Bxc3 {[%clk 0:02:46]} 10. bxc3 {[%clk 0:02:54]}  d5 {[%clk 0:02:46]} 11. Bd3 {[%clk 0:02:54]}  c5 {[%clk 0:02:41]} 12. Nf3 {[%clk 0:02:48]}  Nc6 {[%clk 0:02:40]} 13. Re1 {[%clk 0:02:46]}  Bg4 {[%clk 0:02:39]} 14. h3 {[%clk 0:02:45]}  Bh5 {[%clk 0:02:36]} 15. Rb1 {[%clk 0:02:45]}  b6 {[%clk 0:02:35]} 16. c4 {[%clk 0:02:36]}  d4 {[%clk 0:02:30]} 17. Be4 {[%clk 0:02:29]}  Rc8 {[%clk 0:02:28]} 18. Bd5 {[%clk 0:02:27]}  g5 {[%clk 0:02:25]} 19. Bg3 {[%clk 0:02:25]}  Nxd5 {[%clk 0:02:24]} 20. cxd5 {[%clk 0:02:25]}  Qxd5 {[%clk 0:02:25]} 21. c3 {[%clk 0:02:21]}  Rfd8 {[%clk 0:02:20]} 22. cxd4 {[%clk 0:02:17]}  Nxd4 {[%clk 0:02:19]} 0-1


[Site "https://www.chess.com"]

[Event "Titled Tuesday Blitz July 11 Early 2023"]
[White "feuervogel1000000"]
[Black "Skiadopoulos, Nikolaos"]
[BlackFideId "4200772"]
[WhiteElo "2519"]
[BlackElo "1914"]
[Result "1-0"]
[Round "1"]
[TimeControl "180+2"]
[Date "2023.07.11"]
[WhiteClock "0:02:14"]
[BlackClock "0:00:05"]
[Board "228"]

1. d4 {[%clk 0:02:56]}  Nf6 {[%clk 0:02:59]} 2. Nd2 {[%clk 0:02:56]}  d5 {[%clk 0:02:56]} 3. Ngf3 {[%clk 0:02:56]}  g6 {[%clk 0:02:55]} 4. e3 {[%clk 0:02:55]}  Bg7 {[%clk 0:02:55]} 5. c4 {[%clk 0:02:55]}  c6 {[%clk 0:02:54]} 6. Bd3 {[%clk 0:02:54]}  O-O {[%clk 0:02:50]} 7. O-O {[%clk 0:02:54]}  dxc4 {[%clk 0:02:48]} 8. Nxc4 {[%clk 0:02:52]}  Nbd7 {[%clk 0:02:45]} 9. b3 {[%clk 0:02:53]}  b5 {[%clk 0:02:43]} 10. Nce5 {[%clk 0:02:52]}  Nxe5 {[%clk 0:02:42]} 11. Nxe5 {[%clk 0:02:51]}  Bb7 {[%clk 0:02:39]} 12. Ba3 {[%clk 0:02:52]}  Rc8 {[%clk 0:02:37]} 13. Rc1 {[%clk 0:02:51]}  a6 {[%clk 0:02:36]} 14. Qe2 {[%clk 0:02:49]}  Nd5 {[%clk 0:02:28]} 15. Rfd1 {[%clk 0:02:46]}  Bxe5 {[%clk 0:02:22]} 16. dxe5 {[%clk 0:02:46]}  Qc7 {[%clk 0:02:21]} 17. Qb2 {[%clk 0:02:42]}  b4 {[%clk 0:02:14]} 18. Bxb4 {[%clk 0:02:42]}  Nxb4 {[%clk 0:02:13]} 19. Bc4 {[%clk 0:02:42]}  e6 {[%clk 0:02:06]} 20. e4 {[%clk 0:02:42]}  Rcd8 {[%clk 0:02:02]} 21. a3 {[%clk 0:02:41]}  Rxd1+ {[%clk 0:01:56]} 22. Rxd1 {[%clk 0:02:42]}  Rd8 {[%clk 0:01:54]} 23. Rxd8+ {[%clk 0:02:39]}  Qxd8 {[%clk 0:01:54]} 24. axb4 {[%clk 0:02:40]}  Qd1+ {[%clk 0:01:49]} 25. Bf1 {[%clk 0:02:40]}  c5 {[%clk 0:01:49]} 26. bxc5 {[%clk 0:02:38]}  Bxe4 {[%clk 0:01:49]} 27. Qc3 {[%clk 0:02:36]}  Bc6 {[%clk 0:01:45]} 28. Qd3 {[%clk 0:02:32]}  Qxd3 {[%clk 0:01:40]} 29. Bxd3 {[%clk 0:02:31]}  a5 {[%clk 0:01:39]} 30. Bc4 {[%clk 0:02:27]}  Kf8 {[%clk 0:01:38]} 31. f4 {[%clk 0:02:27]}  Ke7 {[%clk 0:01:38]} 32. Kf2 {[%clk 0:02:27]}  f6 {[%clk 0:01:38]} 33. g3 {[%clk 0:02:27]}  g5 {[%clk 0:01:35]} 34. Ke3 {[%clk 0:02:26]}  h5 {[%clk 0:01:33]} 35. exf6+ {[%clk 0:02:24]}  Kxf6 {[%clk 0:01:33]} 36. fxg5+ {[%clk 0:02:25]}  Kxg5 {[%clk 0:01:33]} 37. Bxe6 {[%clk 0:02:25]}  h4 {[%clk 0:01:31]} 38. gxh4+ {[%clk 0:02:23]}  Kxh4 {[%clk 0:01:30]} 39. Kd4 {[%clk 0:02:18]}  a4 {[%clk 0:00:53]} 40. b4 {[%clk 0:02:16]}  a3 {[%clk 0:00:53]} 41. Ke5 {[%clk 0:02:15]}  Kg5 {[%clk 0:00:21]} 42. Kd6 {[%clk 0:02:15]}  Kf6 {[%clk 0:00:19]} 43. Ba2 {[%clk 0:02:14]}  Ba4 {[%clk 0:00:05]} 44. c6 {[%clk 0:02:14]} 1-0


[Site "https://www.chess.com"]

[Event "Titled Tuesday Blitz July 11 Early 2023"]
[White "Noguera Da Almeida, Beatriz Elvira"]
[Black "Osmak, Yuliia"]
[WhiteFideId "3901734"]
[BlackFideId "14101602"]
[WhiteElo "1741"]
[BlackElo "2517"]
[Result "0-1"]
[Round "1"]
[TimeControl "180+2"]
[Date "2023.07.11"]
[WhiteClock "0:00:51"]
[BlackClock "0:02:17"]
[Board "231"]

1. e4 {[%clk 0:02:43]}  c5 {[%clk 0:02:59]} 2. Nc3 {[%clk 0:02:20]}  d6 {[%clk 0:02:56]} 3. f4 {[%clk 0:02:14]}  a6 {[%clk 0:02:51]} 4. a4 {[%clk 0:02:09]}  Nc6 {[%clk 0:02:48]} 5. Bc4 {[%clk 0:02:04]}  Nf6 {[%clk 0:02:47]} 6. d3 {[%clk 0:01:58]}  e6 {[%clk 0:02:40]} 7. Nf3 {[%clk 0:01:58]}  d5 {[%clk 0:02:40]} 8. Ba2 {[%clk 0:01:56]}  dxe4 {[%clk 0:02:37]} 9. dxe4 {[%clk 0:01:53]}  Qxd1+ {[%clk 0:02:37]} 10. Kxd1 {[%clk 0:01:52]}  Bd7 {[%clk 0:02:30]} 11. Ke2 {[%clk 0:01:50]}  Nd4+ {[%clk 0:02:27]} 12. Nxd4 {[%clk 0:01:48]}  cxd4 {[%clk 0:02:28]} 13. Nd1 {[%clk 0:01:46]}  Nxe4 {[%clk 0:02:27]} 14. Re1 {[%clk 0:01:23]}  Bc6 {[%clk 0:02:23]} 15. Nf2 {[%clk 0:01:12]}  Bb4 {[%clk 0:02:17]} 16. Rd1 {[%clk 0:01:04]}  O-O-O {[%clk 0:02:16]} 17. Nxe4 {[%clk 0:00:51]}  Bxe4 {[%clk 0:02:17]} 0-1


[Site "https://www.chess.com"]